bitfinex/quotes_SOLUSD_20241218
["timestamp","ask_amount","ask_price","bid_price","bid_amount"]
[1734551379278,41.2919641,213.36,213.26,41.2919641]
[1734551379478,41.2919641,213.38,213.28,41.2919641]
[1734551379797,41.2919641,213.38,213.3,41.2919641]
[1734551379975,41.2919641,213.4,213.32,41.2919641]
[1734551380577,41.2919641,213.38,213.28,41.2919641]
[1734551381097,41.2919641,213.38,213.3,41.2919641]
[1734551381926,41.2919641,213.36,213.28,41.2919641]
[1734551382098,41.2919641,213.32,213.24,41.2919641]
[1734551382573,41.2919641,213.32,213.22,2.0967]
[1734551382574,41.2919641,213.4,213.3,41.2919641]
[1734551382779,41.2919641,213.42,213.34,41.2919641]
[1734551383009,41.2919641,213.46,213.36,41.2919641]
[1734551383406,41.2919641,213.44,213.36,41.2919641]
[1734551383705,37.07467332,213.57,213.43,41.2919641]
[1734551383909,41.2919641,213.47,213.39,41.2919641]
[1734551384478,30.0,213.58,213.29,41.2919641]
[1734551384479,41.2919641,213.45,213.35,41.2919641]
[1734551384903,41.2919641,213.43,213.35,41.2919641]
[1734551385133,41.2919641,213.43,213.33,41.2919641]
[1734551385406,41.2919641,213.49,213.38,41.2919641]
[1734551385579,41.2919641,213.47,213.38,41.2919641]
[1734551386798,41.2919641,213.47,213.36,41.2919641]
[1734551387006,41.2919641,213.43,213.34,41.2919641]
[1734551387208,41.2919641,213.45,213.36,41.2919641]
[1734551387507,41.2919641,213.39,213.3,41.2919641]
[1734551387673,41.2919641,213.37,213.28,41.2919641]
[1734551387878,41.2919641,213.35,213.26,41.2919641]
[1734551388079,41.2919641,213.39,213.3,41.2919641]
[1734551388310,41.2919641,213.45,213.36,41.2919641]
[1734551388985,23.776884,213.52,213.38,41.2919641]
[1734551389313,41.2919641,213.46,213.38,41.2919641]
[1734551389494,41.2919641,213.48,213.38,41.2919641]
[1734551389931,4.75704327,213.58,213.42,41.2919641]
[1734551390092,41.2919641,213.49,213.4,41.2919641]
[1734551390600,41.2919641,213.53,213.44,41.2919641]
[1734551390800,41.2919641,213.51,213.42,41.2919641]
[1734551391298,41.2919641,213.55,213.46,41.2919641]
[1734551391499,41.2919641,213.62,213.52,41.2919641]
[1734551391711,41.2919641,213.62,213.54,41.2919641]
[1734551392222,41.2919641,213.66,213.56,41.2919641]
[1734551392382,41.2919641,213.66,213.58,41.2919641]
[1734551392587,41.2919641,213.68,213.58,41.2919641]
[1734551392789,41.2919641,213.72,213.62,41.2919641]
[1734551393016,41.2919641,213.74,213.64,41.2919641]
[1734551393181,41.2919641,213.74,213.56,2.2023]
[1734551393382,7.07467332,213.82,213.56,2.2023]
[1734551393383,41.2919641,213.72,213.62,41.2919641]
[1734551393577,41.2919641,213.72,213.64,41.2919641]
[1734551393799,41.2919641,213.74,213.66,41.2919641]
[1734551394005,41.2919641,213.74,213.64,41.2919641]
[1734551394203,41.2919641,213.74,213.66,41.2919641]
[1734551394593,41.2919641,213.74,213.64,41.2919641]
[1734551394800,41.2919641,213.76,213.68,41.2919641]
[1734551395005,41.2919641,213.78,213.68,41.2919641]
[1734551395320,41.2919641,213.78,213.7,41.2919641]
[1734551395895,0.5590333,213.81,213.74,41.2919641]
[1734551396910,41.2919641,213.78,213.7,41.2919641]
[1734551397408,41.2919641,213.8,213.72,41.2919641]
[1734551397596,0.5590333,213.81,213.74,41.2919641]
[1734551397999,41.2919641,213.8,213.7,41.2919641]
[1734551398606,41.2919641,213.78,213.68,41.2919641]
[1734551398797,41.2919641,213.76,213.66,41.2919641]
[1734551398991,41.2919641,213.78,213.7,41.2919641]
[1734551399202,41.2919641,213.8,213.72,41.2919641]
[1734551399391,41.2919641,213.78,213.7,41.2919641]
[1734551400312,0.5590333,213.81,213.68,41.2919641]
[1734551400313,41.2919641,213.76,213.68,41.2919641]
[1734551400518,41.2919641,213.8,213.72,41.2919641]
[1734551400692,0.5590333,213.81,213.74,41.2919641]
[1734551401008,41.2919641,213.78,213.7,41.2919641]
[1734551401209,41.2919641,213.8,213.72,41.2919641]
[1734551401387,0.5590333,213.81,213.68,41.2919641]
[1734551401388,41.2919641,213.76,213.68,41.2919641]
[1734551401586,0.5590333,213.81,213.74,41.2919641]
[1734551401799,0.5590333,213.81,213.76,41.2919641]
[1734551402005,0.5590333,213.81,213.78,41.2919641]
[1734551402203,0.5590333,213.81,213.8,41.2919641]
[1734551403116,0.5590333,213.81,213.78,41.2919641]
[1734551403288,0.5590333,213.81,213.76,41.2919641]
[1734551403492,41.2919641,213.77,213.69,41.2919641]
[1734551403888,41.2919641,213.95,213.68,6.4678]
[1734551403889,38.7243,214.11,213.76,41.2919641]
[1734551404089,41.2919641,213.98,213.89,41.2919641]
[1734551404520,41.2919641,214.0,213.93,41.2919641]
[1734551404726,8.7243,214.11,213.97,41.2919641]
[1734551404891,41.2919641,214.06,213.97,41.2919641]
[1734551405096,41.2919641,214.06,213.99,41.2919641]
[1734551405288,41.2919641,214.04,213.95,41.2919641]
[1734551405489,41.8509974,214.02,213.93,41.2919641]
[1734551405716,0.5590333,214.02,213.95,41.2919641]
[1734551406024,0.5590333,214.02,213.97,41.2919641]
[1734551406518,0.5590333,214.02,214.01,41.2919641]
[1734551407415,1.41516618,214.02,214.01,41.2919641]
[1734551407795,41.2919641,214.19,214.02,0.12549]
[1734551408024,0.70178998,214.18,214.1,41.2919641]
[1734551408324,41.2919641,214.17,214.08,41.2919641]
[1734551408509,41.2919641,214.13,214.04,41.2919641]
[1734551408697,41.2919641,214.11,214.02,41.2919641]
[1734551408899,0.70178998,214.1,213.99,0.12549]
[1734551409117,0.70178998,214.1,214.09,41.2919641]
[1734551409297,0.70178998,214.1,214.09,42.11776238]
[1734551409497,41.2919641,214.26,214.1,0.12549]
[1734551409800,41.3465182,214.28,214.19,41.2919641]
[1734551410011,41.2919641,214.24,214.15,41.2919641]
[1734551410237,41.2919641,214.22,214.15,41.2919641]
[1734551410736,41.2919641,214.18,214.09,41.2919641]
[1734551410900,41.2919641,214.16,214.07,41.2919641]
[1734551411104,41.2919641,214.14,214.05,41.2919641]
[1734551411432,41.2919641,214.12,214.03,41.2919641]
[1734551411643,41.2919641,214.08,214.01,41.2919641]
[1734551411942,41.2919641,214.04,213.97,41.2919641]
[1734551412101,41.2919641,214.06,213.99,41.2919641]
[1734551412301,41.2919641,214.08,214.01,41.2919641]
[1734551412741,41.2919641,214.1,214.01,41.2919641]
[1734551413111,6.3154,214.14,214.03,41.2919641]
[1734551413349,41.2919641,214.18,214.09,41.2919641]
[1734551413638,41.2919641,214.22,214.15,41.2919641]
[1734551413800,41.2919641,214.2,214.13,41.2919641]
[1734551414000,41.8509974,214.23,214.13,41.2919641]
[1734551414405,41.2919641,214.21,214.13,41.2919641]
[1734551414611,41.2919641,214.17,214.09,41.2919641]
[1734551414844,41.2919641,214.13,214.05,41.2919641]
[1734551415012,41.2919641,214.1,214.03,41.2919641]
[1734551415216,0.5590333,214.23,214.05,41.2919641]
[1734551415217,41.2919641,214.12,214.05,41.2919641]
[1734551415446,41.2919641,214.1,214.01,41.2919641]
[1734551415606,41.2919641,214.1,213.97,6.83041694]
[1734551415607,41.2919641,214.08,213.99,41.2919641]
[1734551416115,41.2919641,214.08,214.01,41.2919641]
[1734551416509,41.2919641,214.12,214.03,41.2919641]
[1734551416725,41.2919641,214.14,214.07,41.2919641]
[1734551416930,41.2919641,214.16,214.07,41.2919641]
[1734551417326,41.2919641,214.14,214.05,41.2919641]
[1734551417532,41.2919641,214.12,214.05,41.2919641]
[1734551418536,41.2919641,214.1,214.01,41.2919641]
[1734551418732,41.2919641,214.12,214.05,41.2919641]
[1734551418934,41.2919641,214.15,214.07,41.2919641]
[1734551420656,41.2919641,214.19,214.11,41.2919641]
[1734551420827,41.2919641,214.21,214.13,41.2919641]
[1734551421152,41.2919641,214.17,214.09,41.2919641]
[1734551421314,41.2919641,214.19,214.11,41.2919641]
[1734551422251,41.2919641,214.15,214.07,41.2919641]
[1734551422559,41.2919641,214.11,214.03,41.2919641]
[1734551422851,41.2919641,214.09,214.01,41.2919641]
[1734551423036,41.2919641,214.05,213.97,47.4217641]
[1734551423240,41.2919641,214.09,214.01,41.2919641]
[1734551423739,41.2919641,214.17,213.97,47.4217641]
[1734551423740,41.2919641,214.05,213.97,47.4217641]
[1734551423947,20.0,214.13,214.01,41.2919641]
[1734551424150,41.2919641,214.13,214.04,41.2919641]
[1734551424345,41.2919641,214.17,214.08,41.2919641]
[1734551424512,41.2919641,214.17,214.1,41.2919641]
[1734551424713,41.2919641,214.21,214.12,41.2919641]
[1734551425130,41.8509974,214.23,214.16,41.2919641]
[1734551425337,0.5590333,214.23,214.16,41.2919641]
[1734551425525,41.8509974,214.23,214.14,41.2919641]
[1734551426250,41.8509974,214.23,214.16,41.2919641]
[1734551426754,41.8509974,214.23,214.14,41.2919641]
[1734551426963,0.5590333,214.23,214.18,41.2919641]
[1734551427123,0.5590333,214.23,214.22,41.2919641]
[1734551427754,0.5590333,214.23,214.18,41.2919641]
[1734551428159,0.5590333,214.23,214.22,41.2919641]
[1734551428656,0.5590333,214.23,214.2,41.2919641]
[1734551429323,0.5590333,214.23,214.16,41.2919641]
[1734551429724,0.5590333,214.23,214.18,41.2919641]
[1734551429957,0.5590333,214.23,214.16,41.2919641]
[1734551430369,41.2919641,214.25,214.1,41.2919641]
[1734551430370,41.2919641,214.18,214.1,41.2919641]
[1734551430570,41.2919641,214.18,214.07,0.70012717]
[1734551430571,41.2919641,214.12,214.05,41.2919641]
[1734551430867,41.2919641,214.08,213.99,41.2919641]
[1734551431034,41.2919641,214.06,214.0,0.85447263]
[1734551431239,41.2919641,214.08,214.0,0.85447263]
[1734551431656,41.2919641,214.06,214.0,0.85447263]
[1734551432371,41.2919641,214.08,214.0,0.85447263]
[1734551432865,41.2919641,214.17,214.0,0.85447263]
[1734551432866,38.8484641,214.1,214.01,41.2919641]
[1734551433041,41.2919641,214.09,214.0,0.85447263]
[1734551433243,41.2919641,214.09,214.01,41.2919641]
[1734551433765,41.2919641,214.11,214.05,41.2919641]
[1734551434010,41.2919641,214.15,214.05,41.2919641]
[1734551434203,41.2919641,214.15,214.07,41.2919641]
[1734551434565,41.2919641,214.17,214.09,41.2919641]
[1734551434805,41.2919641,214.17,214.03,41.2919641]
[1734551434806,41.2919641,214.11,214.03,41.2919641]
[1734551434973,41.2919641,214.09,214.04,0.85431294]
[1734551435182,41.2919641,214.07,214.04,0.85431294]
[1734551435380,41.2919641,214.07,213.96,0.70066822]
[1734551435381,41.2919641,214.05,213.97,41.2919641]
[1734551435796,41.2919641,214.09,214.03,41.2919641]
[1734551436007,41.2919641,214.13,214.05,41.2919641]
[1734551436512,41.2919641,214.13,214.03,41.2919641]
[1734551436692,41.2919641,214.11,214.01,41.2919641]
[1734551437078,41.2919641,214.09,214.01,41.2919641]
[1734551437609,41.2919641,214.07,213.99,41.2919641]
[1734551438406,41.2919641,214.05,213.97,41.2919641]
[1734551438717,41.2919641,214.01,213.93,41.2919641]
[1734551438883,41.2919641,213.99,213.91,41.2919641]
[1734551439089,41.2919641,213.99,213.91,42.14679623]
[1734551439289,41.2919641,213.99,213.91,0.85483213]
[1734551439487,41.2919641,213.97,213.91,0.85483213]
[1734551440004,41.2919641,213.95,213.91,0.85483213]
[1734551440313,41.2919641,213.93,213.91,0.85483213]
[1734551441074,23.776884,213.92,213.91,0.85483213]
[1734551441328,20.0,213.89,213.73,41.2919641]
[1734551441615,41.2919641,213.79,213.74,0.85551203]
[1734551441810,41.2919641,213.77,213.74,0.85551203]
[1734551442278,41.2919641,213.81,213.74,0.85551203]
[1734551442482,41.2919641,213.85,213.77,41.2919641]
[1734551442811,41.2919641,213.89,213.79,41.2919641]
[1734551443104,41.2919641,213.87,213.79,41.2919641]
[1734551443302,41.2919641,213.89,213.81,41.2919641]
[1734551444216,41.2919641,213.91,213.83,41.2919641]
[1734551444418,41.2919641,213.89,213.81,41.2919641]
[1734551445413,41.2919641,213.95,213.76,23.776884]
[1734551445414,41.2919641,213.93,213.85,41.2919641]
[1734551446718,8.2226,214.02,213.81,0.70114292]
[1734551446719,41.2919641,213.89,213.81,41.2919641]
[1734551446880,41.2919641,213.91,213.83,41.2919641]
[1734551447287,41.2919641,213.93,213.85,41.2919641]
[1734551447705,41.2919641,213.87,213.8,6.3048]
[1734551447915,41.2919641,213.83,213.75,41.2919641]
[1734551448271,41.2919641,213.85,213.79,41.2919641]
[1734551448496,41.2919641,213.89,213.81,41.2919641]
[1734551448779,41.2919641,213.93,213.85,41.2919641]
[1734551449001,41.2919641,213.86,213.82,0.70127345]
[1734551449189,30.0,213.83,213.7,0.5590333]
[1734551449420,41.2919641,213.71,213.7,0.5590333]
[1734551451589,41.2919641,213.71,213.52,41.2919641]
[1734551451590,20.0,213.68,213.52,41.2919641]
[1734551451787,41.2919641,213.6,213.52,41.2919641]
[1734551452187,41.2919641,213.62,213.54,41.2919641]
[1734551452609,41.2919641,213.64,213.54,41.2919641]
[1734551453004,41.2919641,213.6,213.52,41.2919641]
[1734551453199,41.2919641,213.56,213.48,48.3830974]
[1734551453403,41.2919641,213.54,213.48,7.0911333]
[1734551453717,41.2919641,213.54,213.48,0.5590333]
[1734551453886,41.2919641,213.58,213.5,41.2919641]
[1734551454089,41.2919641,213.62,213.54,41.2919641]
[1734551454291,41.2919641,213.64,213.56,41.2919641]
[1734551454721,41.2919641,213.62,213.54,41.2919641]
[1734551454899,41.2919641,213.6,213.52,41.2919641]
[1734551455291,41.2919641,213.58,213.5,41.2919641]
[1734551455497,41.2919641,213.56,213.48,41.8509974]
[1734551455715,41.2919641,213.58,213.5,41.2919641]
[1734551455917,41.2919641,213.58,213.48,0.5590333]
[1734551455918,41.2919641,213.6,213.52,41.2919641]
[1734551456123,6.18,213.76,213.54,41.2919641]
[1734551456124,41.2919641,213.62,213.54,41.2919641]
[1734551456797,41.2919641,213.64,213.56,41.2919641]
[1734551458015,41.2919641,213.62,213.54,41.2919641]
[1734551458217,41.2919641,213.64,213.54,41.2919641]
[1734551458518,41.2919641,213.64,213.56,41.2919641]
[1734551458909,41.2919641,213.66,213.56,41.2919641]
[1734551459115,41.2919641,213.66,213.58,41.2919641]
[1734551459303,41.2919641,213.63,213.54,61.2919641]
[1734551460102,41.2919641,213.63,213.56,41.2919641]
[1734551460501,41.2919641,213.58,213.5,41.2919641]
[1734551460710,41.2919641,213.62,213.54,41.2919641]
[1734551461026,41.2919641,213.68,213.58,41.2919641]
[1734551461340,41.2919641,213.66,213.58,41.2919641]
[1734551461510,41.2919641,213.64,213.56,41.2919641]
[1734551461708,41.2919641,213.68,213.6,41.2919641]
[1734551462010,41.2919641,213.74,213.66,41.2919641]
[1734551463333,41.2919641,213.7,213.62,41.2919641]
[1734551463543,41.2919641,213.68,213.6,41.2919641]
[1734551463707,41.2919641,213.66,213.58,41.2919641]
[1734551463901,41.2919641,213.68,213.6,41.2919641]
[1734551464115,41.2919641,213.7,213.62,41.2919641]
[1734551464517,41.2919641,213.72,213.64,41.2919641]
[1734551464721,41.2919641,213.74,213.66,41.2919641]
[1734551464921,41.2919641,213.7,213.56,6.348]
[1734551465124,41.2919641,213.64,213.58,41.2919641]
[1734551465434,41.2919641,213.6,213.54,41.2919641]
[1734551465609,41.2919641,213.6,213.48,6.7694333]
[1734551465610,41.2919641,213.6,213.52,41.2919641]
[1734551465936,41.2919641,213.62,213.54,41.2919641]
[1734551466251,41.2919641,213.6,213.52,41.2919641]
[1734551466412,41.2919641,213.62,213.54,41.2919641]
[1734551466613,41.2919641,213.6,213.52,41.2919641]
[1734551466836,41.2919641,213.62,213.54,41.2919641]
[1734551467014,41.2919641,213.64,213.56,41.2919641]
[1734551467350,41.2919641,213.7,213.62,41.2919641]
[1734551467707,41.2919641,213.68,213.6,41.2919641]
[1734551467936,41.2919641,213.7,213.62,41.2919641]
[1734551468320,41.2919641,213.7,213.6,41.2919641]
[1734551468505,41.2919641,213.68,213.6,41.2919641]
[1734551468710,41.2919641,213.73,213.65,41.2919641]
[1734551469138,41.2919641,213.75,213.65,41.2919641]
[1734551469438,41.2919641,213.73,213.65,41.2919641]
[1734551470261,41.2919641,213.71,213.62,41.2919641]
[1734551470450,41.2919641,213.73,213.64,41.2919641]
[1734551470607,41.2919641,213.75,213.66,41.2919641]
[1734551470812,41.2919641,213.75,213.68,41.2919641]
[1734551471034,41.2919641,213.73,213.66,41.2919641]
[1734551471564,41.2919641,213.73,213.64,41.2919641]
[1734551471767,41.2919641,213.75,213.66,41.2919641]
[1734551471968,41.2919641,213.77,213.68,41.2919641]
[1734551472143,41.2919641,213.75,213.68,41.2919641]
[1734551472345,41.2919641,213.77,213.68,41.2919641]
[1734551472665,41.2919641,213.79,213.72,41.2919641]
[1734551472964,41.2919641,213.81,213.72,41.2919641]
[1734551473182,41.2919641,213.79,213.72,41.2919641]
[1734551473365,41.2919641,213.81,213.72,41.2919641]
[1734551473942,41.2919641,213.83,213.74,41.2919641]
[1734551474156,41.2919641,213.81,213.72,41.2919641]
[1734551474385,41.2919641,213.77,213.68,41.2919641]
[1734551474555,41.2919641,213.73,213.64,41.2919641]
[1734551474877,41.2919641,213.71,213.64,41.2919641]
[1734551475855,41.2919641,213.73,213.64,41.2919641]
[1734551476047,41.2919641,213.73,213.57,8.4361]
[1734551476048,41.2919641,213.69,213.62,41.2919641]
[1734551476390,23.776884,213.79,213.6,41.2919641]
[1734551476391,41.2919641,213.67,213.6,41.2919641]
[1734551476589,41.2919641,213.69,213.62,41.2919641]
[1734551476752,41.2919641,213.71,213.62,41.2919641]
[1734551476948,41.2919641,213.71,213.64,41.2919641]
[1734551477160,41.2919641,213.73,213.66,41.2919641]
[1734551477355,41.2919641,213.75,213.68,41.2919641]
[1734551477756,41.2919641,213.77,213.68,41.2919641]
[1734551477954,41.2919641,213.73,213.64,41.2919641]
[1734551478153,41.2919641,213.71,213.64,41.2919641]
[1734551478948,41.2919641,213.73,213.64,41.2919641]
[1734551479281,41.2919641,213.75,213.66,41.2919641]
[1734551479491,41.2919641,213.77,213.68,41.2919641]
[1734551479669,41.2919641,213.72,213.55,20.0]
[1734551479877,41.2919641,213.7,213.6,41.2919641]
[1734551480187,41.2919641,213.7,213.62,41.2919641]
[1734551480352,41.2919641,213.7,213.6,41.2919641]
[1734551480744,41.2919641,213.68,213.6,41.2919641]
[1734551481164,41.2919641,213.7,213.62,41.2919641]
[1734551481748,41.2919641,213.76,213.67,41.2919641]
[1734551481949,41.2919641,213.8,213.71,41.2919641]
[1734551482680,41.2919641,213.78,213.69,41.2919641]
[1734551482881,41.2919641,213.8,213.71,41.2919641]
[1734551483258,41.2919641,213.78,213.71,41.2919641]
[1734551483454,41.2919641,213.76,213.67,41.2919641]
[1734551483765,41.2919641,213.7,213.61,41.2919641]
[1734551483968,41.2919641,213.68,213.59,41.2919641]
[1734551484679,41.2919641,213.68,213.61,41.2919641]
[1734551484979,41.2919641,213.62,213.53,41.2919641]
[1734551485174,41.2919641,213.6,213.51,41.2919641]
[1734551485370,41.2919641,213.58,213.51,41.2919641]
[1734551485577,41.2919641,213.58,213.49,41.2919641]
[1734551485775,41.2919641,213.6,213.53,41.2919641]
[1734551485976,41.2919641,213.62,213.53,41.2919641]
[1734551486273,41.2919641,213.62,213.55,41.2919641]
[1734551486471,41.2919641,213.6,213.51,41.2919641]
[1734551486664,41.2919641,213.6,213.48,0.5590333]
[1734551486665,41.2919641,213.56,213.49,41.2919641]
[1734551487064,41.2919641,213.56,213.48,0.5590333]
[1734551487280,41.2919641,213.58,213.49,41.2919641]
[1734551487482,41.2919641,213.6,213.53,41.2919641]
[1734551487681,2.1447,213.69,213.48,0.5590333]
[1734551487682,41.2919641,213.66,213.57,41.2919641]
[1734551487893,41.2919641,213.71,213.62,41.2919641]
[1734551488208,41.2919641,213.75,213.66,41.2919641]
[1734551488688,6.85575765,213.76,213.72,41.2919641]
[1734551488896,41.2919641,213.83,213.74,41.2919641]
[1734551489483,41.2919641,213.81,213.72,41.2919641]
[1734551490566,41.2919641,213.83,213.74,41.2919641]
[1734551490885,41.2919641,213.79,213.72,41.2919641]
[1734551491054,22.1795,213.89,213.74,41.2919641]
[1734551491255,41.2919641,213.84,213.74,41.2919641]
[1734551491675,41.2919641,213.82,213.74,41.2919641]
[1734551491891,41.2919641,213.8,213.72,41.2919641]
[1734551492273,41.2919641,213.82,213.74,41.2919641]
[1734551492665,41.2919641,213.82,213.72,41.2919641]
[1734551492874,41.2919641,213.78,213.7,41.2919641]
[1734551493154,41.2919641,213.84,213.66,41.2919641]
[1734551493156,30.0,213.82,213.66,41.2919641]
[1734551493374,30.0,213.82,213.64,41.2919641]
[1734551493375,41.2919641,213.72,213.64,41.2919641]
[1734551494252,41.2919641,213.72,213.55,4.96510619]
[1734551494253,41.2919641,213.74,213.66,41.2919641]
[1734551495164,41.2919641,213.76,213.68,41.2919641]
[1734551496087,41.2919641,213.78,213.68,41.2919641]
[1734551496584,41.2919641,213.76,213.66,41.2919641]
[1734551496970,41.2919641,213.72,213.64,41.2919641]
[1734551497382,41.2919641,213.7,213.62,41.2919641]
[1734551497761,41.2919641,213.68,213.6,41.2919641]
[1734551498168,41.2919641,213.63,213.54,41.2919641]
[1734551498381,41.2919641,213.65,213.56,41.2919641]
[1734551498969,41.2919641,213.61,213.54,41.2919641]
[1734551499278,23.776884,213.72,213.48,0.5590333]
[1734551499279,41.2919641,213.57,213.5,41.2919641]
[1734551499485,41.2919641,213.55,213.48,0.5590333]
[1734551500858,41.2919641,213.55,213.48,41.8509974]
[1734551501360,41.2919641,213.55,213.48,0.5590333]
[1734551501573,41.2919641,213.53,213.48,0.5590333]
[1734551501892,41.2919641,213.49,213.48,0.5590333]
[1734551502107,41.2919641,213.51,213.48,0.5590333]
[1734551502108,20.0,213.51,213.48,0.5590333]
[1734551502297,41.2919641,213.54,213.48,0.5590333]
[1734551502469,41.2919641,213.56,213.48,0.5590333]
[1734551502982,41.2919641,213.58,213.49,41.2919641]
[1734551503299,41.2919641,213.6,213.51,41.2919641]
[1734551504077,41.2919641,213.64,213.55,41.2919641]
[1734551504276,47.5066641,213.67,213.57,41.2919641]
[1734551504604,41.2919641,213.58,213.48,0.5590333]
[1734551504776,0.12549,213.62,213.48,0.5590333]
[1734551504777,41.2919641,213.56,213.48,41.8509974]
[1734551505798,41.2919641,213.58,213.5,41.2919641]
[1734551506290,20.12549,213.65,213.54,41.2919641]
[1734551506594,61.2919641,213.65,213.56,41.2919641]
[1734551506787,41.2919641,213.63,213.54,41.2919641]
[1734551507188,41.2919641,213.61,213.52,41.2919641]
[1734551507573,41.2919641,213.55,213.48,0.5590333]
[1734551507772,41.2919641,213.57,213.49,41.2919641]
[1734551507982,41.2919641,213.57,213.48,0.5590333]
[1734551507983,41.2919641,213.61,213.53,41.2919641]
[1734551508182,41.2919641,213.63,213.53,41.2919641]
[1734551508399,41.2919641,213.63,213.55,41.2919641]
[1734551509111,9.15995765,213.72,213.53,41.2919641]
[1734551509112,41.2919641,213.61,213.53,41.2919641]
[1734551509303,41.2919641,213.63,213.55,41.2919641]
[1734551510017,41.2919641,213.65,213.57,41.2919641]
[1734551510517,41.2919641,213.67,213.59,41.2919641]
[1734551510685,41.2919641,213.69,213.59,41.2919641]
[1734551510889,41.2919641,213.71,213.63,41.2919641]
[1734551511589,9.09135765,213.79,213.53,7.25608111]
[1734551511590,41.2919641,213.75,213.65,41.2919641]
[1734551511797,41.2919641,213.73,213.65,41.2919641]
[1734551511997,41.2919641,213.71,213.63,41.2919641]
[1734551512198,41.2919641,213.69,213.61,41.2919641]
[1734551512701,41.2919641,213.71,213.63,41.2919641]
[1734551513102,41.2919641,213.73,213.63,41.2919641]
[1734551513309,41.2919641,213.73,213.65,41.2919641]
[1734551513714,41.2919641,213.69,213.61,41.2919641]
[1734551514029,41.2919641,213.69,213.59,41.2919641]
[1734551514692,41.2919641,213.67,213.59,41.2919641]
[1734551514896,41.2919641,213.64,213.56,41.2919641]
[1734551515111,41.2919641,213.64,213.54,41.2919641]
[1734551515422,41.2919641,213.62,213.54,41.2919641]
[1734551515901,41.2919641,213.6,213.52,41.2919641]
[1734551516623,41.2919641,213.6,213.5,41.2919641]
[1734551517018,41.2919641,213.6,213.52,41.2919641]
[1734551517218,41.2919641,213.62,213.54,41.2919641]
[1734551517724,41.2919641,213.62,213.52,41.2919641]
[1734551517915,41.2919641,213.6,213.52,41.2919641]
[1734551518295,41.2919641,213.62,213.54,41.2919641]
[1734551518505,41.2919641,213.6,213.52,41.2919641]
[1734551518808,41.2919641,213.58,213.5,41.2919641]
[1734551519521,41.2919641,213.6,213.52,41.2919641]
[1734551519722,41.2919641,213.54,213.48,0.5590333]
[1734551520018,41.2919641,213.56,213.48,41.8509974]
[1734551520604,41.2919641,213.54,213.48,0.5590333]
[1734551520808,41.2919641,213.5,213.48,0.5590333]
[1734551521598,23.902374,213.49,213.48,0.5076333]
[1734551521803,23.902374,213.49,213.48,0.4947333]
[1734551523256,20.0,213.42,213.3,41.2919641]
[1734551523518,41.2919641,213.33,213.27,0.5590333]
[1734551523923,41.2919641,213.37,213.28,41.2919641]
[1734551524226,41.2919641,213.41,213.34,41.2919641]
[1734551524412,41.2919641,213.45,213.36,41.2919641]
[1734551524816,20.0,213.48,213.36,41.2919641]
[1734551524817,41.2919641,213.43,213.36,41.2919641]
[1734551525147,41.2919641,213.51,213.42,41.2919641]
[1734551525420,41.2919641,213.55,213.46,41.2919641]
[1734551525814,41.2919641,213.57,213.48,41.2919641]
[1734551526014,41.2919641,213.61,213.52,41.2919641]
[1734551526236,41.2919641,213.63,213.55,41.2919641]
[1734551526527,41.2919641,213.61,213.53,41.2919641]
[1734551526906,41.2919641,213.59,213.51,41.2919641]
[1734551527224,41.2919641,213.57,213.49,41.2919641]
[1734551527525,41.2919641,213.55,213.47,41.2919641]
[1734551527858,41.2919641,213.58,213.5,41.2919641]
[1734551528128,41.2919641,213.52,213.44,41.2919641]
[1734551528420,41.2919641,213.54,213.46,41.2919641]
[1734551528603,41.2919641,213.56,213.48,41.2919641]
[1734551529397,41.2919641,213.54,213.46,41.2919641]
[1734551529597,41.2919641,213.48,213.4,41.2919641]
[1734551530350,20.0,213.43,213.36,41.2919641]
[1734551530641,41.2919641,213.38,213.3,41.2919641]
[1734551531202,41.2919641,213.36,213.28,41.2919641]
[1734551531833,41.2919641,213.42,213.32,41.2919641]
[1734551532149,41.2919641,213.4,213.32,41.2919641]
[1734551532332,41.2919641,213.38,213.3,41.2919641]
[1734551532534,41.2919641,213.4,213.32,41.2919641]
[1734551532720,41.2919641,213.42,213.32,41.2919641]
[1734551533441,41.2919641,213.4,213.3,41.2919641]
[1734551534353,41.2919641,213.38,213.3,41.2919641]
[1734551534645,41.2919641,213.36,213.27,0.5590333]
[1734551534821,41.2919641,213.36,213.27,41.8509974]
[1734551535017,41.2919641,213.38,213.31,41.2919641]
[1734551535327,41.2919641,213.38,213.29,41.2919641]
[1734551535535,41.2919641,213.38,213.27,0.5590333]
[1734551535536,41.2919641,213.36,213.27,41.8509974]
[1734551535841,41.2919641,213.4,213.33,41.2919641]
[1734551536027,41.2919641,213.44,213.35,41.2919641]
[1734551536232,7.10612342,213.53,213.29,41.2919641]
[1734551536233,41.2919641,213.46,213.38,41.2919641]
[1734551536442,7.10612342,213.53,213.36,41.2919641]
[1734551536443,41.2919641,213.44,213.36,41.2919641]
[1734551536744,41.2919641,213.46,213.38,41.2919641]
[1734551537342,41.2919641,213.44,213.36,41.2919641]
[1734551537722,41.2919641,213.48,213.4,41.2919641]
[1734551537923,41.2919641,213.5,213.42,41.2919641]
[1734551538221,0.12549,213.49,213.35,6.1293]
[1734551538445,41.2919641,213.44,213.36,41.2919641]